Cogmind - Beta 17 @@@ ROGUE MODE // 2026.06.24 @ 17:37:31 // Winter2019/RPGLIKE Player: Willow Result: Self-destructed Performance ------------- Evolutions (2) 1000 Regions Visited (5) 1000 Robots Destroyed (39) 195 Value Destroyed (721) 721 Prototype IDs (27) 540 Alien Tech Used (0) 0 Bonus (5077) 5077 TOTAL SCORE: 8533 Bonus ------- Follower Combat Kills 77 Prayed to X0-1V1 5000 Cogmind --------- Core Integrity 572/600 Matter 900/900 Energy 950/950 System Corruption 0% Temperature Cool (0) Movement Rolling (140) Ox4 Location -8/Materials Parts ------- > --- POWER (1) -------- Light Angular Momentum Engine (fused) > --- PROPULSION (2) --- Light Treads Wheel > --- UTILITY (5) ------ Improved Heat Sink High-capacity Matter Pod (fused) Signal Interpreter Makeshift System Restoration Module X0-1V1's Piety Tracker > --- WEAPON (4) ------- Beamcaster Latent Energy Streamer Gauss Rifle Rocket Launcher > --- INVENTORY (2) ---- (None) Peak State ------------ > --- POWER ------------ Light Angular Momentum Engine > --- PROPULSION ------- Light Treads Wheel > --- UTILITY ---------- Improved Heat Sink High-capacity Matter Pod Signal Interpreter Makeshift System Restoration Module X0-1V1's Piety Tracker > --- WEAPON ----------- Beamcaster Latent Energy Streamer Gauss Rifle Rocket Launcher > --- INVENTORY -------- (None) [Rating: 50] Favorites ----------- Power Light Angular Momentum Engine Engine Light Angular Momentum Engine Propulsion Light Treads Treads Light Treads Wheel Wheel Utility High-capacity Matter Pod Device X0-1V1's Piety Tracker Storage High-capacity Matter Pod Processor Signal Interpreter Weapon Assault Rifle Energy Gun Beamcaster Energy Cannon Latent Energy Streamer Ballistic Gun Assault Rifle Launcher Rocket Launcher Special Melee Weapon Datajack Build | -11 -10 -10 -10 -9 -8 ------- Run | Yrd Mat Min Exi Min Mat Slots Evolved 8 | 3 1 2 1 1 . Power . | . . . . . . Propulsion 1 | 1 . . . . . Utility 4 | 1 1 1 1 . . Weapon 3 | 1 . 1 . 1 . Parts Attached 20 | 6 4 3 4 3 . Power 2 | 1 . 1 . . . Engine 2 | 1 . 1 . . . Core . | . . . . . . Reactor . | . . . . . . Propulsion 3 | 2 1 . . . . Treads 1 | 1 . . . . . Leg . | . . . . . . Wheel 2 | 1 1 . . . . Hover . | . . . . . . Flight . | . . . . . . Utility 8 | 1 3 1 1 2 . Device 5 | 1 1 1 . 2 . Storage 1 | . 1 . . . . Processor 2 | . 1 . 1 . . Hackware . | . . . . . . Protection . | . . . . . . Artifact . | . . . . . . Weapon 7 | 2 . 1 3 1 . Energy Gun 1 | . . 1 . . . Energy Cannon 1 | . . . . 1 . Ballistic Gun 3 | 2 . . 1 . . Ballistic Cannon . | . . . . . . Launcher 1 | . . . 1 . . Special Weapon . | . . . . . . Impact Weapon . | . . . . . . Slashing Weapon . | . . . . . . Piercing Weapon . | . . . . . . Special Melee Weapon 1 | . . . 1 . . Unidentified Prototypes 1 | . 1 . . . . Parts Lost 1 | . . . . 1 . Power . | . . . . . . Propulsion . | . . . . . . Utility 1 | . . . . 1 . Weapon . | . . . . . . Highest Loss Streak 1 | . . . . 1 . To Critical Strikes . | . . . . . . Average Backups 1 | . . 1 1 1 . Power . | . . . . . . Propulsion . | . . . . . . Utility . | . . . . . . Weapon . | . . 1 1 . . Tool/Special . | . . . . . . Unused Backups 1 | . . 1 . . . Power . | . . . . . . Propulsion . | . . . . . . Utility . | . . . . . . Weapon 1 | . . 1 . . . Tool/Special . | . . . . . . Average Slot Usage (%) 98 | . 96 100 99 100 . Engine 10 | . 13 10 9 8 . Treads 10 | . 12 10 9 8 . Wheel 10 | . 11 10 9 8 . Device 16 | . 13 16 18 18 . Storage 10 | . 12 10 9 8 . Processor 10 | . 5 10 14 15 . Energy Gun 5 | . . 6 9 8 . Energy Cannon 1 | . . . . 6 . Ballistic Gun 18 | . 26 21 12 8 . Launcher 2 | . . . 1 8 . Peak Build Rating 50 | 6 20 32 38 50 . Average Rating 25 | 4 9 27 34 44 . On Entrance 24 | . 6 20 32 38 50 Avg Prop Armor Cover (%) 10 | 9 12 11 9 8 . Naked Turns . | . . . . . . Heaviest Build 43 | 9 13 23 28 43 . Greatest Support 20 | 20 20 20 20 10 . Greatest Overweight (x) 4 | . 3 2 2 4 . Average Overweight (x) 1 | . . 1 1 3 . Largest Inventory Capacity 2 | 1 2 2 2 2 . Average Capacity 1 | 1 1 2 2 2 . Most Carried 2 | . 2 2 2 2 . Average Carried 1 | . 1 1 1 1 . Final Capacity 2 | 1 2 2 2 2 2 Final Carried 2 | . 1 2 2 . . Class Distribution -------------------- 46% | Mutant 45% | Scavenger-Gunner 7% | Scavenger-Mutant Dominant Class ---------------- Mutant | -10/Materials Scavenger-Gunner | -10/Mines Scavenger-Mutant | -10/Exiles Scavenger-Gunner | -9/Mines Scavenger-Gunner | -8/Materials Resources | -11 -10 -10 -10 -9 -8 ----------- Run | Yrd Mat Min Exi Min Mat Matter Collected 1683 | 304 590 283 291 215 . Remotely . | . . . . . . Salvage Created 1565 | 192 837 45 405 86 . Parts 74 | 9 48 3 10 4 . Haulers Intercepted 2 | . 2 . . . . Recyclers Shooed 1 | . 1 . . . . Parts Field Recycled . | . . . . . . Retrieved Matter . | . . . . . . Parts Self-Destructed . | . . . . . . Prevented . | . . . . . . Parts Restored . | . . . . . . Kills | -11 -10 -10 -10 -9 -8 ------- Run | Yrd Mat Min Exi Min Mat Combat Hostiles Destroyed 36 | . 20 4 . 12 . Guns 30 | . 20 4 . 6 . AOE 6 | . . . . 6 . Classes Destroyed 8 | 2 5 . . 1 . Worker 2 | . 2 . . . . Tunneler 6 | 5 . 1 . . . Hauler 2 | . 2 . . . . Recycler 2 | 1 1 . . . . Watcher 1 | . 1 . . . . Swarmer 12 | . 8 4 . . . Grunt 14 | . 12 . . 2 . Assembled 10 | . . . . 10 . Best Kill Streak 6 | 6 6 3 . 4 . Combat Bots Only 6 | . 6 3 . 4 . Max Kills in Single Turn 2 | 1 2 1 . 2 . Gunslinging 1 | . 1 . . . . Exploded 2 | . . . . 2 . Melee . | . . . . . . Uniques/NPCs Destroyed . | . . . . . . Combat | -11 -10 -10 -10 -9 -8 -------- Run | Yrd Mat Min Exi Min Mat Hostile Shots Fired 109 | . 72 22 . 15 . Missed 31 | . 23 3 . 5 . Hits 78 | . 49 19 . 10 . Melee 6 | . . . . 6 . Projectile 72 | . 49 19 . 4 . Critical Strikes 1 | . 1 . . . . Damage Taken 930 | . 503 147 . 280 . Core 749 | . 409 117 . 223 . Absorbed by Shields . | . . . . . . Redirected to Core 597 | . 308 90 . 199 . Ignored by Resistances 25 | . 24 . . 1 . Core Remaining (%) 97 | 100 . . . 95 . Volleys Fired 130 | 11 69 14 18 18 . Largest 3 | 2 2 3 3 3 . Hottest 136 | 40 40 115 115 136 . Shots Fired 258 | 22 128 31 37 40 . Gun 247 | 22 128 31 37 29 . Cannon . | . . . . . . Launcher 11 | . . . . 11 . Special . | . . . . . . Kinetic 212 | 22 128 28 19 15 . Thermal 35 | . . 3 18 14 . Explosive 11 | . . . . 11 . Electromagnetic . | . . . . . . Robot Hit Streak 14 | 4 14 12 9 6 . Robot Miss Streak 6 | 1 6 3 1 4 . Penetration Max 1 | . . . . 1 . Secondary Targets 6 | . 6 . . . . Max Gunslinging Chain 1 | . 1 . . . . Shots Hit Robots 162 | 14 85 16 24 23 . Core Hits 90 | 7 41 7 17 18 . Critical Kills . | . . . . . . Critical Parts Destroyed . | . . . . . . Critical Strikes 3 | . . . 2 1 . Burn 3 | . . . 2 1 . Melee Attacks 2 | . . . 2 . . Impact . | . . . . . . Slashing . | . . . . . . Piercing . | . . . . . . Sneak Attacks 2 | . . . 2 . . Combat Hostiles . | . . . . . . Follow-up Attacks . | . . . . . . Damage Inflicted 2602 | 153 910 208 442 889 . Guns 2094 | 153 910 204 442 385 . Cannons . | . . . . . . Explosions 504 | . . . . 504 . Melee . | . . . . . . Ramming 4 | . . 4 . . . Kinetic 1526 | 153 910 164 110 189 . Thermal 568 | . . 40 332 196 . Explosive 504 | . . . . 504 . Electromagnetic . | . . . . . . Impact . | . . . . . . Slashing . | . . . . . . Piercing . | . . . . . . Highest Corruption 3 | . . . . 3 . Average Corruption 1 | . . . . 1 . Corruption Purged 2 | . . . . 2 . Corruption Blocked . | . . . . . . Effects 2 | . . . . 2 . Matter Fused 1 | . . . . 1 . Heat Flow Errors 1 | . . . . 1 . Overload Shots . | . . . . . . Overflow Damage 40 | . . . . 40 . Projectiles . | . . . . . . Explosions 40 | . . . . 40 . Melee . | . . . . . . Knockbacks . | . . . . . . Impact . | . . . . . . Kinetic . | . . . . . . Secondary . | . . . . . . Self-Inflicted Damage 77 | . . . . 77 . Shots 3 | . . . . 3 . Rammed 2 | . . 2 . . . Targets Rammed 2 | . . 2 . . . Kicked . | . . . . . . Crushed . | . . . . . . Highest Temperature 154 | . 27 36 18 154 . Average Temperature 25 | . 10 16 8 40 . Received Heat Transfer 204 | . 198 . . 6 . Siege Activations . | . . . . . . Martial Activations . | . . . . . . Shielding Activations . | . . . . . . Robots Disrupted . | . . . . . . Combat Hostiles . | . . . . . . Robots Corrupted . | . . . . . . Combat Hostiles . | . . . . . . Parts Fried . | . . . . . . Impact Corruptions . | . . . . . . Robots Melted . | . . . . . . Combat Hostiles . | . . . . . . Parts Melted 1 | . . . 1 . . Heat Transferred 1184 | . . 74 703 407 . Parts Sabotaged . | . . . . . . Parts Stolen . | . . . . . . Parts Stripped . | . . . . . . Power Chain Reactions . | . . . . . . Alert | -11 -10 -10 -10 -9 -8 ------- Run | Yrd Mat Min Exi Min Mat Maximum Alert Level 1 | . 1 . . . . Low Security (%) 89 | 100 72 100 . 100 . Level 1 10 | . 27 . . . . Level 2 . | . . . . . . Level 3 . | . . . . . . Level 4 . | . . . . . . Level 5 . | . . . . . . High Security . | . . . . . . Max Security . | . . . . . . Peak Influence 275 | 20 275 135 . 91 . Initial 101 | . 6 101 . . . Average 76 | 7 142 48 . 25 . Influence Increases 1109 | 30 614 179 25 261 . Destroy 0b10 Robot/C 660 | . 400 140 . 120 . Destroy 0b10 Robot/NC 90 | 30 30 5 25 . . Destroy Leader 136 | . 86 30 . 20 . Allied During Kill 22 | . . 4 . 18 . Successful Hack 23 | . 23 . . . . Select Force Hacks 60 | . 60 . . . . Disable Machine 15 | . . . . 15 . Destroy Structure 88 | . . . . 88 . Lose Combat Pursuer 15 | . 15 . . . . Influence Decreases 1109 | 20 363 440 25 261 . Entered New Map 164 | . 4 160 . . . Time Decay 861 | 20 359 260 25 197 . Lost Part 10 | . . . . 10 . Lost Ally 74 | . . 20 . 54 . Squads Dispatched 2 | . 2 . . . . Investigation 2 | . 2 . . . . Extermination . | . . . . . . Reinforcement . | . . . . . . Assault . | . . . . . . Garrison . | . . . . . . Intercept . | . . . . . . Searches Triggered . | . . . . . . Construction Impeded . | . . . . . . Haulers Reinforced . | . . . . . . Active Scanning Responses . | . . . . . . Cargo Convoy Interrupts . | . . . . . . Stealth | -11 -10 -10 -10 -9 -8 --------- Run | Yrd Mat Min Exi Min Mat Distress Signals 3 | . 3 . . . . Communications Jammed . | . . . . . . Distress Signals . | . . . . . . Times Spotted 63 | . 37 7 . 19 . Peak Tracking Total 6 | . 6 3 . 4 . Tactical Retreats 2 | . 2 . . . . Traps | -11 -10 -10 -10 -9 -8 ------- Run | Yrd Mat Min Exi Min Mat Traps Triggered 6 | . 6 . . . . Indirectly . | . . . . . . Trap Hack Attempts . | . . . . . . Triggered . | . . . . . . Disarmed . | . . . . . . Reprogrammed . | . . . . . . Reused . | . . . . . . Traps Extracted . | . . . . . . Installed 5 | . . . . 5 . Triggered . | . . . . . . Machines | -11 -10 -10 -10 -9 -8 ---------- Run | Yrd Mat Min Exi Min Mat Machines Disabled 2 | . 1 . . 1 . Max in Single Turn 1 | . 1 . . . . Machines Repaired . | . . . . . . Machines Dismantled . | . . . . . . Machines Sabotaged . | . . . . . . Overloaded Fab Kills . | . . . . . . Hacking | -11 -10 -10 -10 -9 -8 --------- Run | Yrd Mat Min Exi Min Mat Machines Accessed 10 | . 8 . 2 . . Terminals 6 | . 6 . . . . Fabricators . | . . . . . . Repair Stations . | . . . . . . Recycling Units 2 | . 2 . . . . Scanalyzers . | . . . . . . Garrison Access . | . . . . . . Total Hacks 32 | . 30 . 2 . . Successful 23 | . 21 . 2 . . Failed 8 | . 8 . . . . Catastrophic . | . . . . . . Database Lockouts 1 | . 1 . . . . Manual 26 | . 25 . 1 . . Terminals 28 | . 28 . . . . Fabricators . | . . . . . . Repair Stations . | . . . . . . Recycling Units 2 | . 2 . . . . Scanalyzers . | . . . . . . Garrison Access . | . . . . . . Terminal Hacks 11 | . 9 . 2 . . Record 1 | . . . 1 . . Robot Analysis 1 | . 1 . . . . Prototype ID Bank 2 | . 2 . . . . Emergency Access Points 1 | . 1 . . . . Terminal Index 1 | . 1 . . . . Recycling Unit Index 1 | . 1 . . . . Alert Level 1 | . 1 . . . . Locate Traps 2 | . 2 . . . . Proto ID Catalog 1 | . . . 1 . . Fabricator Hacks . | . . . . . . Repair Station Hacks . | . . . . . . Recycling Unit Hacks . | . . . . . . Scanalyzer . | . . . . . . Garrison Access Hacks . | . . . . . . Unauthorized Hacks 12 | . 12 . . . . Terminals 10 | . 10 . . . . Botnet 3 | . 3 . . . . Operators 1 | . 1 . . . . Skim 6 | . 6 . . . . Fabricators . | . . . . . . Repair Stations . | . . . . . . Recycling Units 2 | . 2 . . . . Tunnel 2 | . 2 . . . . Scanalyzers . | . . . . . . Garrison Access . | . . . . . . Data Cores Recovered . | . . . . . . Used . | . . . . . . Hacking Detections 5 | . 5 . . . . Full Trace Events 1 | . 1 . . . . Feedback Events . | . . . . . . Feedback Blocked . | . . . . . . Robot Schematics Acquired . | . . . . . . Robots Built . | . . . . . . Authchips . | . . . . . . Time . | . . . . . . Total Robot Build Rating . | . . . . . . Part Schematics Acquired . | . . . . . . Parts Built . | . . . . . . Authchips . | . . . . . . Time . | . . . . . . Total Part Build Rating . | . . . . . . Part Studies Acquired . | . . . . . . Parts Repaired . | . . . . . . Time . | . . . . . . Parts Recycled . | . . . . . . Recycled Matter . | . . . . . . Retrieved Matter . | . . . . . . Retrieved Components . | . . . . . . Parts Scanalyzed . | . . . . . . Part Schematics Acquired . | . . . . . . Parts Damaged . | . . . . . . Bothacking | -11 -10 -10 -10 -9 -8 ------------ Run | Yrd Mat Min Exi Min Mat Used RIF Installer . | . . . . . . Robots Hacked . | . . . . . . Non-combat . | . . . . . . Combat . | . . . . . . Robot Hacks Applied . | . . . . . . Relay Couplers Released . | . . . . . . Fabnet Peak Effective % . | . . . . . . Robots Rewired 4 | . . . 4 . . Allies Hacked . | . . . . . . Hacks Repelled . | . . . . . . Allies | -11 -10 -10 -10 -9 -8 -------- Run | Yrd Mat Min Exi Min Mat Total Allies 5 | . . 1 4 . . Largest Group 4 | . . 1 4 4 . Highest-Rated Group 45 | . . 31 45 45 . Highest-Rated Ally 31 | . . 31 21 21 . Total Orders . | . . . . . . Ally Attacks 39 | . . 4 . 35 . Total Damage 435 | . . 65 . 370 . Kills 12 | . . 3 . 9 . Allies Corrupted . | . . . . . . Allies Melted . | . . . . . . X0-1V1 Amusement Gains 40 | . 10 . . 30 . Good Acts 6 | . . 3 . 3 . Bad Acts 3 | . 1 1 . 1 . Intel | -11 -10 -10 -10 -9 -8 ------- Run | Yrd Mat Min Exi Min Mat Active Infowar (turns) 744 | 17 727 . . . . Seismic 744 | 17 727 . . . . Robot Analysis Total 1 | . 1 . . . . Derelict Logs Recovered 3 | . . 2 . 1 . Drone Launches . | . . . . . . Drone Recoveries . | . . . . . . Exploration | -11 -10 -10 -10 -9 -8 ------------- Run | Yrd Mat Min Exi Min Mat Turns Passed 2910 | 98 935 821 431 625 . Spaces Moved 1921 | 52 543 666 245 415 . Core 8 | 7 1 . . . . Treads 200 | 25 65 66 44 . . Legs . | . . . . . . Wheels 1713 | 20 477 600 201 415 . Hover . | . . . . . . Flight . | . . . . . . Fastest Speed 50 | 50 80 95 110 110 . Average Speed 114 | 114 101 113 133 125 . Slowest Speed 240 | 160 200 240 240 140 . Overloaded Moves . | . . . . . . Propulsion Burnouts . | . . . . . . Robots Hopped . | . . . . . . Potential Cave-ins . | . . . . . . Cave-ins Triggered . | . . . . . . Exploration Rate (%) 52 | 3 68 89 64 91 1 Regions Visited 5 Branch Regions 3 Pre-discovered Areas 6 | . 3 1 1 1 . Known Exits Taken 4 | . 1 1 1 1 . Unknown Exits Taken 1 | 1 . . . . . Scrap Searched 2 | . . 1 . 1 . Spaces Dug . | . . . . . . Terrain Destroyed 126 | . . . . 126 . Melee . | . . . . . . Projectile 2 | . . . . 2 . AOE 124 | . . . . 124 . Terrain Rammed . | . . . . . . Walls Destroyed . | . . . . . . Machines Disabled . | . . . . . . Actions | -11 -10 -10 -10 -9 -8 --------- Run | Yrd Mat Min Exi Min Mat Total 2380 | 68 808 703 313 488 . Wait 194 | . 151 10 4 29 . Move 1916 | 51 542 665 244 414 . Hop . | . . . . . . Pick Up 8 | . 2 2 3 1 . Fast Attach 25 | 6 14 3 1 1 . Attach 4 | . . . 2 2 . Detach . | . . . . . . Swap 1 | . . . 1 . . Drop 9 | . 2 2 3 2 . Fire 130 | 11 69 14 18 18 . Melee 2 | . . . 2 . . Ram . | . . . . . . Kick . | . . . . . . Crush 2 | . . 2 . . . Escape Stasis . | . . . . . . Rewire 26 | . . . 26 . . Trap 5 | . . . . 5 . Miscellaneous 58 | . 28 5 9 16 . Route ------- -11/Scrapyard -10/Materials (discovered 5 exits: *Mat x3 / *Min / *Sub) -10/Mines (discovered 4 exits: *Mat x2 / *Exi / *Sub) -10/Exiles (discovered 2 exits: *Min x2) -9/Mines (discovered 2 exits: *Mat x2) -8/Materials History --------- Turn | Location | Event 1 | -11/Scrapyard | Upgraded with Propulsion slot (x1) 1 | -11/Scrapyard | Upgraded with Utility slot (x1) 1 | -11/Scrapyard | Upgraded with Weapon slot (x1) 4 | -11/Scrapyard | Discovered new exit (range 17) 99 | -11/Scrapyard | Entered Materials 149 | -10/Materials | Central database locked down 306 | -10/Materials | Build established: Mutant 435 | -10/Materials | Discovered new exit (range 12) 540 | -10/Materials | Discovered new exit (range 6) 579 | -10/Materials | Reached level 2 587 | -10/Materials | Upgraded with Utility slot (x1) 599 | -10/Materials | Derelicts attacked the area 624 | -10/Materials | Learned location of 1 exit from Storage 658 | -10/Materials | Learned location of 2 exits from Mines 681 | -10/Materials | Learned Storage emergency access door positions 693 | -10/Materials | Learned location of 2 exits from Subcaves 697 | -10/Materials | Learned Storage emergency access door positions 712 | -10/Materials | Loaded intel: 2 recycling unit locations 735 | -10/Materials | Identified exit to Materials 738 | -10/Materials | Identified exit to Mines 820 | -10/Materials | Discovered new exit (range 6) 827 | -10/Materials | Identified exit to Subcaves 827 | -10/Materials | Prayed at D.C.S.S. Altar Unit 827 | -10/Materials | Reached level 3 827 | -10/Materials | Reached level 4 1034 | -10/Materials | Entered Mines 1035 | -10/Mines | Identified exit to Exiles 1041 | -10/Mines | Received a Rocket Launcher from a helpful Derelict 1068 | -10/Mines | Received a Mining Laser from a helpful Derelict 1079 | -10/Mines | Met a Derelict bent on vengeance 1117 | -10/Mines | Reached level 5 1239 | -10/Mines | Learned location of Storage (-9) 1293 | -10/Mines | Discovered exit to Materials (range 7) 1342 | -10/Mines | Upgraded with Utility slot (x1) 1342 | -10/Mines | Upgraded with Weapon slot (x1) 1633 | -10/Mines | Discovered exit to Subcaves (range 10) 1652 | -10/Mines | Build established: Scavenger-Gunner 1851 | -10/Mines | Deemed a non-threat by the Exiles lab entrance 1855 | -10/Mines | Entered Exiles 1855 | -10/Exiles | Found Exiles lab destroyed 1870 | -10/Exiles | Discovered new exit (range 15) 2028 | -10/Exiles | Upgraded with Utility slot (x1) 2138 | -10/Exiles | Opened EX-Vault 2145 | -10/Exiles | Found Latent Energy Streamer 2208 | -10/Exiles | Learned location of Zion (-7) 2272 | -10/Exiles | Discovered new exit (range 11) 2281 | -10/Exiles | Identified exit to Mines 2286 | -10/Exiles | Entered Mines 2286 | -9/Mines | Accompanied by 4 allies 2287 | -9/Mines | Assembled infested the area 2422 | -9/Mines | Found a hidden stash of uninstalled traps 2436 | -9/Mines | Upgraded with Weapon slot (x1) 2458 | -9/Mines | Lost 3 allies 2611 | -9/Mines | Learned Materials garrison access intel 2643 | -9/Mines | Reached level 6 2851 | -9/Mines | Discovered new exit (range 19) 2875 | -9/Mines | Identified exit to Materials 2891 | -9/Mines | Discovered exit to Materials (range 10) 2911 | -9/Mines | Entered Materials 2911 | -8/Materials | Self-destructed Last Messages --------------- 02823_ Found Med. Laser. 02823_ Found Lrg. Battery. 02823_ Found 53 Matter. 02823_ Found 55 Matter. 02824_ Acquired 10 matter. 02851_ EXIT=FOUND 02875_ EXIT=IDENTIFIED: MATERIALS 02880_ Mak. System Restoration Module purges 1% system corruption (1%). 02891_ EXIT=FOUND: MATERIALS 02899_ A derelict emerges from the shadows: "Are any of them following you? I'm here trying to lose some heat after our second raid on Storage failed. Whatever you do stay away from that place, they've tightened security following our previous successful raids." World map confirmed: -9/Storage. 02901_ System corrupted: Heat flow error (+186). 02901_ Y8-MKJ(g): "We scattered so the Unaware couldn't effectively use their advantage in numbers, and I suggest you do the same." 02901_ Y8-MKJ(g) slips back into the shadows. LOCATION=MATERIALS GOAL=ESCAPE Map ----- +----------------------------------------------------+ | | | | | | | | | | | | | | | | | | | ????????????????????????????????????? | | ????????????????????????????????????? | | ????????????????????????????????????? | | ????????????????????????????????????? | | ????????????????????????????????????? | | ????????????????????????????????????? | | ????????????????????????????????????? | | ????????????????????????????????????? | | ????????????????????????????????????? | | ????????????????????????????????????? | | ????????????????????????????????????? | | ????????????????????????????????????? | | ????????????????????????????????????? | | ????????????????????????????????????? | | ???????????????????????#####????????? | | ???????????????????????# #????????? | | ???????????????????????# @ #????????? | | ???????????????????????# #????????? | | ???????????????????????# +????????? | | ??????????????????????? #????????? | | ?????????????????????? #????????? | | ????????????????????? #????????? | | ?????????????????????### #????????? | | ???????????????????????# #????????? | | ???????????????????????# #????????? | | ???????????????????????# #????????? | | ??????????????????????? #????????? | | ??????????????????????? #????????? | | ??????????????????????? #????????? | | ??????????????????????? #????????? | | ???????????????????????#####????????? | | ????????????????????????????????????? | | ????????????????????????????????????? | | ????????????????????????????????????? | | ????????????????????????????????????? | | ????????????????????????????????????? | | ????????????????????????????????????? | | ????????????????????????????????????? | | ????????????????????????????????????? | | ????????????????????????????????????? | | ????????????????????????????????????? | +----------------------------------------------------+ Best States ------------- Heat Dissipation 39 Energy Generation 18 Energy Capacity 1050 Matter Stores 900 Matter Capacity 900 Sight Range 22 Terrain Scan Density 10 Resistance: TH 5 Evasion (%) 44 Targeting Accuracy 5 Recoil Reduction 1 Offensive Hacking 5 Defensive Hacking 5 Item Schematics ----------------- None Robot Schematics ------------------ None Fabricated ------------ Nothing Repaired ---------- Nothing Studied --------- None Alien Tech Used ----------------- None Achievements -------------- Luggage Code Challenges ------------ None RPGLIKE | -11 -10 -10 -10 -9 -8 --------- Run | Yrd Mat Min Exi Min Mat Levels Raised 5 | . 3 1 . 1 . XP Earned 10886 | 3000 5230 1186 139 1331 . XP Spent 8700 | 3000 1300 1900 1400 1100 . Upgrades 16 | 10 2 2 1 1 . Propulsion Slot 1 | 1 . . . . . Utility Slot 4 | 1 1 1 1 . . Weapon Slot 3 | 1 . 1 . 1 . Inventory Capacity 2 | 1 1 . . . . Sight Range 1 | 1 . . . . . Ranged Accuracy 1 | 1 . . . . . Hack Attack % 1 | 1 . . . . . Hack Defense % 1 | 1 . . . . . TH Resistance % 1 | 1 . . . . . KI Damage % 1 | 1 . . . . . Protomatter Created 325 | . 185 22 66 52 . Integrity Restored 1056 | . 508 71 157 320 . Core 721 | . 409 39 78 195 . Parts 335 | . 99 32 79 125 . Protomatter Decayed 154 | . 64 13 12 65 . Game ------ Seed ShrapnelLauncherMultirail Manual? 0 Play Time 00:26:33 Cumulative 356.8 hours Start 2026.06.23 @ 23:44:17 End 2026.06.24 @ 17:37:31 Sessions 3 Manual Loads 0 Difficulty Rogue Special Mode Winter2019/RPGLIKE Game No. 146 Rogue 98 Adventurer 44 Explorer 4 Win Type - Total 11 Types 4/3/0/1/1/1/0/1/0/0 Lore% 77 Gallery% 68 Achievement% 56 Wizard Run 0 Options --------- Layout 0 ASCII 0 Keyboard 0 Movement Arrows Keybinds 0 Fullscreen 2 Font 18/SmallcapsGlow Map View 76x50 Zoom Use 0% Tactical HUD 1 Map Filters NONE Filters NONE Steam 1 RUN: d3c7bb40-f8ab-414d-991f-1322ce9601eb